Workbook

Sheet 1
A1: مسلسل | B1: =SUM($B$2:$B$1000) -> 0 | C1: الصنف | D1: الاسم | E1: السعر | F1: =SUM($F$2:$F$1000) -> 0 | G1: التاريخ | J1: بادى 23 | K1: نامى 21 خشن | L1: بادى نامى ناعم | M1: بادى نامى خشن | N1: بياض | O1: ردة | P1: دشيشة
A2: =IF(C2="","",SUBTOTAL(3,$C$2:C2)) ->  | F2: =IFERROR(B2*E2,"") -> 0 | G2: =IF(B2="","",TODAY()) -> 
A3: =IF(C3="","",SUBTOTAL(3,$C$2:C3)) ->  | F3: =IFERROR(B3*E3,"") -> 0
A4: =IF(C4="","",SUBTOTAL(3,$C$2:C4)) ->  | F4: 0
A5: =IF(C5="","",SUBTOTAL(3,$C$2:C5)) ->  | F5: 0
A6: =IF(C6="","",SUBTOTAL(3,$C$2:C6)) ->  | F6: 0
A7: =IF(C7="","",SUBTOTAL(3,$C$2:C7)) ->  | F7: 0
A8: =IF(C8="","",SUBTOTAL(3,$C$2:C8)) ->  | F8: 0
A9: =IF(C9="","",SUBTOTAL(3,$C$2:C9)) ->  | F9: 0
A10: =IF(C10="","",SUBTOTAL(3,$C$2:C10)) ->  | F10: 0
A11: =IF(C11="","",SUBTOTAL(3,$C$2:C11)) ->  | F11: 0
A12: =IF(C12="","",SUBTOTAL(3,$C$2:C12)) ->  | F12: 0
A13: =IF(C13="","",SUBTOTAL(3,$C$2:C13)) ->  | F13: 0
A14: =IF(C14="","",SUBTOTAL(3,$C$2:C14)) ->  | F14: 0
A15: =IF(C15="","",SUBTOTAL(3,$C$2:C15)) ->  | F15: 0
A16: =IF(C16="","",SUBTOTAL(3,$C$2:C16)) ->  | F16: 0
A17: =IF(C17="","",SUBTOTAL(3,$C$2:C17)) ->  | F17: 0
A18: =IF(C18="","",SUBTOTAL(3,$C$2:C18)) ->  | F18: 0
A19: =IF(C19="","",SUBTOTAL(3,$C$2:C19)) ->  | F19: 0
A20: =IF(C20="","",SUBTOTAL(3,$C$2:C20)) ->  | F20: 0
A21: =IF(C21="","",SUBTOTAL(3,$C$2:C21)) ->  | F21: 0
A22: =IF(C22="","",SUBTOTAL(3,$C$2:C22)) ->  | F22: 0
A23: =IF(C23="","",SUBTOTAL(3,$C$2:C23)) ->  | F23: 0
A24: =IF(C24="","",SUBTOTAL(3,$C$2:C24)) ->  | F24: 0
A25: =IF(C25="","",SUBTOTAL(3,$C$2:C25)) ->  | F25: 0
A26: =IF(C26="","",SUBTOTAL(3,$C$2:C26)) ->  | F26: 0
A27: =IF(C27="","",SUBTOTAL(3,$C$2:C27)) ->  | F27: 0
A28: =IF(C28="","",SUBTOTAL(3,$C$2:C28)) ->  | F28: 0
A29: =IF(C29="","",SUBTOTAL(3,$C$2:C29)) ->  | F29: 0
A30: =IF(C30="","",SUBTOTAL(3,$C$2:C30)) ->  | F30: 0
A31: =IF(C31="","",SUBTOTAL(3,$C$2:C31)) ->  | F31: 0
A32: =IF(C32="","",SUBTOTAL(3,$C$2:C32)) ->  | F32: 0
A33: =IF(C33="","",SUBTOTAL(3,$C$2:C33)) ->  | F33: 0
A34: =IF(C34="","",SUBTOTAL(3,$C$2:C34)) ->  | F34: 0
A35: =IF(C35="","",SUBTOTAL(3,$C$2:C35)) ->  | F35: 0
A36: =IF(C36="","",SUBTOTAL(3,$C$2:C36)) ->  | F36: 0
A37: =IF(C37="","",SUBTOTAL(3,$C$2:C37)) ->  | F37: 0
A38: =IF(C38="","",SUBTOTAL(3,$C$2:C38)) ->  | F38: 0
A39: =IF(C39="","",SUBTOTAL(3,$C$2:C39)) ->  | F39: 0
A40: =IF(C40="","",SUBTOTAL(3,$C$2:C40)) ->  | F40: 0
A41: =IF(C41="","",SUBTOTAL(3,$C$2:C41)) ->  | F41: 0
A42: =IF(C42="","",SUBTOTAL(3,$C$2:C42)) ->  | F42: 0
A43: =IF(C43="","",SUBTOTAL(3,$C$2:C43)) ->  | F43: 0
A44: =IF(C44="","",SUBTOTAL(3,$C$2:C44)) ->  | F44: 0
A45: =IF(C45="","",SUBTOTAL(3,$C$2:C45)) ->  | F45: 0
A46: =IF(C46="","",SUBTOTAL(3,$C$2:C46)) ->  | F46: 0
A47: =IF(C47="","",SUBTOTAL(3,$C$2:C47)) ->  | F47: 0
A48: =IF(C48="","",SUBTOTAL(3,$C$2:C48)) ->  | F48: 0
A49: =IF(C49="","",SUBTOTAL(3,$C$2:C49)) ->  | F49: 0
A50: =IF(C50="","",SUBTOTAL(3,$C$2:C50)) ->  | F50: 0
A51: =IF(C51="","",SUBTOTAL(3,$C$2:C51)) ->  | F51: 0
A52: =IF(C52="","",SUBTOTAL(3,$C$2:C52)) ->  | F52: 0
A53: =IF(C53="","",SUBTOTAL(3,$C$2:C53)) ->  | F53: 0
A54: =IF(C54="","",SUBTOTAL(3,$C$2:C54)) ->  | F54: 0
A55: =IF(C55="","",SUBTOTAL(3,$C$2:C55)) ->  | F55: 0
A56: =IF(C56="","",SUBTOTAL(3,$C$2:C56)) ->  | F56: 0
A57: =IF(C57="","",SUBTOTAL(3,$C$2:C57)) ->  | F57: 0
A58: =IF(C58="","",SUBTOTAL(3,$C$2:C58)) ->  | F58: 0
A59: =IF(C59="","",SUBTOTAL(3,$C$2:C59)) ->  | F59: 0
A60: =IF(C60="","",SUBTOTAL(3,$C$2:C60)) ->  | F60: 0
A61: =IF(C61="","",SUBTOTAL(3,$C$2:C61)) ->  | F61: 0
A62: =IF(C62="","",SUBTOTAL(3,$C$2:C62)) ->  | F62: 0
A63: =IF(C63="","",SUBTOTAL(3,$C$2:C63)) ->  | F63: 0
A64: =IF(C64="","",SUBTOTAL(3,$C$2:C64)) ->  | F64: 0
A65: =IF(C65="","",SUBTOTAL(3,$C$2:C65)) ->  | F65: 0
A66: =IF(C66="","",SUBTOTAL(3,$C$2:C66)) ->  | F66: 0 | G66: =IF(B66="","",TODAY()) -> 
A67: =IF(C67="","",SUBTOTAL(3,$C$2:C67)) ->  | F67: =IFERROR(B67*E67,"") -> 0
A68: =IF(C68="","",SUBTOTAL(3,$C$2:C68)) ->  | F68: 0
A69: =IF(C69="","",SUBTOTAL(3,$C$2:C69)) ->  | F69: 0
A70: =IF(C70="","",SUBTOTAL(3,$C$2:C70)) ->  | F70: 0
A71: =IF(C71="","",SUBTOTAL(3,$C$2:C71)) ->  | F71: 0
A72: =IF(C72="","",SUBTOTAL(3,$C$2:C72)) ->  | F72: 0
A73: =IF(C73="","",SUBTOTAL(3,$C$2:C73)) ->  | F73: 0
A74: =IF(C74="","",SUBTOTAL(3,$C$2:C74)) ->  | F74: 0
A75: =IF(C75="","",SUBTOTAL(3,$C$2:C75)) ->  | F75: 0
A76: =IF(C76="","",SUBTOTAL(3,$C$2:C76)) ->  | F76: 0
A77: =IF(C77="","",SUBTOTAL(3,$C$2:C77)) ->  | F77: 0
A78: =IF(C78="","",SUBTOTAL(3,$C$2:C78)) ->  | F78: 0
A79: =IF(C79="","",SUBTOTAL(3,$C$2:C79)) ->  | F79: 0
A80: =IF(C80="","",SUBTOTAL(3,$C$2:C80)) ->  | F80: 0
A81: =IF(C81="","",SUBTOTAL(3,$C$2:C81)) ->  | F81: 0
A82: =IF(C82="","",SUBTOTAL(3,$C$2:C82)) ->  | F82: 0
A83: =IF(C83="","",SUBTOTAL(3,$C$2:C83)) ->  | F83: 0
A84: =IF(C84="","",SUBTOTAL(3,$C$2:C84)) ->  | F84: 0
A85: =IF(C85="","",SUBTOTAL(3,$C$2:C85)) ->  | F85: 0
A86: =IF(C86="","",SUBTOTAL(3,$C$2:C86)) ->  | F86: 0
A87: =IF(C87="","",SUBTOTAL(3,$C$2:C87)) ->  | F87: 0
A88: =IF(C88="","",SUBTOTAL(3,$C$2:C88)) ->  | F88: 0
A89: =IF(C89="","",SUBTOTAL(3,$C$2:C89)) ->  | F89: 0
A90: =IF(C90="","",SUBTOTAL(3,$C$2:C90)) ->  | F90: 0
A91: =IF(C91="","",SUBTOTAL(3,$C$2:C91)) ->  | F91: 0
A92: =IF(C92="","",SUBTOTAL(3,$C$2:C92)) ->  | F92: 0
A93: =IF(C93="","",SUBTOTAL(3,$C$2:C93)) ->  | F93: 0
A94: =IF(C94="","",SUBTOTAL(3,$C$2:C94)) ->  | F94: 0
A95: =IF(C95="","",SUBTOTAL(3,$C$2:C95)) ->  | F95: 0
A96: =IF(C96="","",SUBTOTAL(3,$C$2:C96)) ->  | F96: 0
A97: =IF(C97="","",SUBTOTAL(3,$C$2:C97)) ->  | F97: 0
A98: =IF(C98="","",SUBTOTAL(3,$C$2:C98)) ->  | F98: 0
A99: =IF(C99="","",SUBTOTAL(3,$C$2:C99)) ->  | F99: 0
A100: =IF(C100="","",SUBTOTAL(3,$C$2:C100)) ->  | F100: 0
A101: =IF(C101="","",SUBTOTAL(3,$C$2:C101)) ->  | F101: 0

Sheet المخزن
B1: الصنف | C1: =[1]ورقة1!B4 -> بادى 23 | D1: =[1]ورقة1!C4 -> نامى خشن | E1: =[1]ورقة1!D4 -> بادى نامى ناعم | F1: =[1]ورقة1!E4 -> بادى نامى خشن | G1: =[1]ورقة1!F4 -> بياض | H1: =[1]ورقة1!G4 -> ردة | I1: =[1]ورقة1!H4 -> دشيشة | J1: التاريخ
B2: الموجود بالبرنامج | C2: ='بادى 23'!I1 -> 12.31 | D2: ='نامى 21 خشن'!I1 -> 52 | E2: ='بادى نامى ناعم'!I1 -> 0 | F2: ='بادى نامى خشن'!I1 -> 18.71 | G2: =بياض!I1 -> 5 | H2: =ردة!I1 -> 0 | I2: =دشيشة!I1 -> 0
B3: الموجود بالمخزن صباحا | C3: 12.6 | D3: 55 | F3: 18.4 | G3: 5
B4: الموجود بالمخزن مساءا | C4: 12.5 | D4: 54 | F4: 19.1 | G4: 5
B5: الموجود بالمخزن صباحا
B6: الموجود بالمخزن مساءا
B7: الموجود بالمخزن صباحا
B8: الموجود بالمخزن مساءا
B9: الموجود بالمخزن صباحا
B10: الموجود بالمخزن مساءا
B11: الموجود بالمخزن صباحا
B12: الموجود بالمخزن مساءا
B13: الموجود بالمخزن صباحا
B14: الموجود بالمخزن مساءا
B15: الموجود بالمخزن صباحا
B16: الموجود بالمخزن مساءا
B17: الموجود بالمخزن صباحا
B18: الموجود بالمخزن مساءا
B19: الموجود بالمخزن صباحا
B20: الموجود بالمخزن مساءا
B21: الموجود بالمخزن صباحا
B22: الموجود بالمخزن مساءا
B23: الموجود بالمخزن صباحا
B24: الموجود بالمخزن مساءا
B25: الموجود بالمخزن صباحا
B26: الموجود بالمخزن مساءا
B27: الموجود بالمخزن صباحا
B28: الموجود بالمخزن مساءا
B29: الموجود بالمخزن صباحا
B30: الموجود بالمخزن مساءا
B31: الموجود بالمخزن صباحا
B32: الموجود بالمخزن مساءا
B33: الموجود بالمخزن صباحا
B34: الموجود بالمخزن مساءا
B35: الموجود بالمخزن صباحا
B36: الموجود بالمخزن مساءا
B37: الموجود بالمخزن صباحا
B38: الموجود بالمخزن مساءا
B39: الموجود بالمخزن صباحا
B40: الموجود بالمخزن مساءا
B41: الموجود بالمخزن صباحا
B42: الموجود بالمخزن مساءا
B43: الموجود بالمخزن صباحا
B44: الموجود بالمخزن مساءا
B45: الموجود بالمخزن صباحا
B46: الموجود بالمخزن مساءا
B47: الموجود بالمخزن صباحا
B48: الموجود بالمخزن مساءا
B49: الموجود بالمخزن صباحا
B50: الموجود بالمخزن مساءا
B51: الموجود بالمخزن صباحا
B52: الموجود بالمخزن مساءا
B53: الموجود بالمخزن صباحا
B54: الموجود بالمخزن مساءا
B55: الموجود بالمخزن صباحا | K55: 7
B56: الموجود بالمخزن مساءا
B57: الموجود بالمخزن صباحا
B58: الموجود بالمخزن مساءا
B59: الموجود بالمخزن صباحا
B60: الموجود بالمخزن مساءا
B61: الموجود بالمخزن صباحا
B62: الموجود بالمخزن مساءا
B63: الموجود بالمخزن صباحا
B64: الموجود بالمخزن مساءا
B65: الموجود بالمخزن صباحا
B66: الموجود بالمخزن مساءا
B67: الموجود بالمخزن صباحا
B68: الموجود بالمخزن مساءا
B69: الموجود بالمخزن صباحا
B70: الموجود بالمخزن مساءا
B71: الموجود بالمخزن صباحا
B72: الموجود بالمخزن مساءا
B73: الموجود بالمخزن صباحا
B74: الموجود بالمخزن مساءا
B75: الموجود بالمخزن صباحا
B76: الموجود بالمخزن مساءا
B77: الموجود بالمخزن صباحا
B78: الموجود بالمخزن مساءا
B79: الموجود بالمخزن صباحا
B80: الموجود بالمخزن مساءا
B81: الموجود بالمخزن صباحا
B82: الموجود بالمخزن مساءا
B83: الموجود بالمخزن صباحا
B84: الموجود بالمخزن مساءا
B85: الموجود بالمخزن صباحا
B86: الموجود بالمخزن مساءا
B87: الموجود بالمخزن صباحا
B88: الموجود بالمخزن مساءا
B89: الموجود بالمخزن صباحا
B90: الموجود بالمخزن مساءا
B91: الموجود بالمخزن صباحا
B92: الموجود بالمخزن مساءا
B93: الموجود بالمخزن صباحا
B94: الموجود بالمخزن مساءا
B95: الموجود بالمخزن صباحا
B96: الموجود بالمخزن مساءا
B97: الموجود بالمخزن صباحا
B98: الموجود بالمخزن مساءا
B99: الموجود بالمخزن صباحا
B100: الموجود بالمخزن مساءا
B101: الموجود بالمخزن صباحا
B102: الموجود بالمخزن مساءا
B103: الموجود بالمخزن صباحا
B104: الموجود بالمخزن مساءا
B105: الموجود بالمخزن صباحا
B106: الموجود بالمخزن مساءا
B107: الموجود بالمخزن صباحا
B108: الموجود بالمخزن مساءا
B109: الموجود بالمخزن صباحا
B110: الموجود بالمخزن مساءا
B111: الموجود بالمخزن صباحا
B112: الموجود بالمخزن مساءا
B113: الموجود بالمخزن صباحا
B114: الموجود بالمخزن مساءا
B115: الموجود بالمخزن صباحا
B116: الموجود بالمخزن مساءا
B117: الموجود بالمخزن صباحا
B118: الموجود بالمخزن مساءا
B119: الموجود بالمخزن صباحا
B120: الموجود بالمخزن مساءا
B121: الموجود بالمخزن صباحا
B122: الموجود بالمخزن مساءا
B123: الموجود بالمخزن صباحا
B124: الموجود بالمخزن مساءا
B125: الموجود بالمخزن صباحا
B126: الموجود بالمخزن مساءا
B127: الموجود بالمخزن صباحا
B128: الموجود بالمخزن مساءا
B129: الموجود بالمخزن صباحا
B130: الموجود بالمخزن مساءا
B131: الموجود بالمخزن صباحا
B132: الموجود بالمخزن مساءا
B133: الموجود بالمخزن صباحا
B134: الموجود بالمخزن مساءا
B135: الموجود بالمخزن صباحا
B136: الموجود بالمخزن مساءا
B137: الموجود بالمخزن صباحا
B138: الموجود بالمخزن مساءا
B139: الموجود بالمخزن صباحا
B140: الموجود بالمخزن مساءا
B141: الموجود بالمخزن صباحا
B142: الموجود بالمخزن مساءا
B143: الموجود بالمخزن صباحا
B144: الموجود بالمخزن مساءا
B145: الموجود بالمخزن صباحا
B146: الموجود بالمخزن مساءا
B147: الموجود بالمخزن صباحا
B148: الموجود بالمخزن مساءا
B149: الموجود بالمخزن صباحا
B150: الموجود بالمخزن مساءا
B151: الموجود بالمخزن صباحا
B152: الموجود بالمخزن مساءا
B153: الموجود بالمخزن صباحا
B154: الموجود بالمخزن مساءا
B155: الموجود بالمخزن صباحا
B156: الموجود بالمخزن مساءا
B157: الموجود بالمخزن صباحا
B158: الموجود بالمخزن مساءا
B159: الموجود بالمخزن صباحا
B160: الموجود بالمخزن مساءا
B161: الموجود بالمخزن صباحا
B162: الموجود بالمخزن مساءا
B163: الموجود بالمخزن صباحا
B164: الموجود بالمخزن مساءا
B165: الموجود بالمخزن صباحا
B166: الموجود بالمخزن مساءا
B167: الموجود بالمخزن صباحا
B168: الموجود بالمخزن مساءا
B169: الموجود بالمخزن صباحا
B170: الموجود بالمخزن مساءا
B171: الموجود بالمخزن صباحا
B172: الموجود بالمخزن مساءا
B173: الموجود بالمخزن صباحا
B174: الموجود بالمخزن مساءا
B175: الموجود بالمخزن صباحا
B176: الموجود بالمخزن مساءا
B177: الموجود بالمخزن صباحا
B178: الموجود بالمخزن مساءا
B179: الموجود بالمخزن صباحا
B180: الموجود بالمخزن مساءا
B181: الموجود بالمخزن صباحا
B182: الموجود بالمخزن مساءا
B183: الموجود بالمخزن صباحا
B184: الموجود بالمخزن مساءا
B185: الموجود بالمخزن صباحا
B186: الموجود بالمخزن مساءا
B187: الموجود بالمخزن صباحا
B188: الموجود بالمخزن مساءا
B189: الموجود بالمخزن صباحا
B190: الموجود بالمخزن مساءا
B191: الموجود بالمخزن صباحا
B192: الموجود بالمخزن مساءا
B193: الموجود بالمخزن صباحا
B194: الموجود بالمخزن مساءا
B195: الموجود بالمخزن صباحا
B196: الموجود بالمخزن مساءا
B197: الموجود بالمخزن صباحا
B198: الموجود بالمخزن مساءا
B199: الموجود بالمخزن صباحا
B200: الموجود بالمخزن مساءا
... 70 more rows

Sheet بادى 23
A1: مسلسل | B1: =SUM($B$2:$B$986) -> 545.5 | C1: الصنف | D1: الاسم | E1: السعر | F1: =SUM($F$2:$F$986) -> 0 | G1: تاريخ البيع | H1: =SUM($H$2:$H$986) -> 10.91 | I1: =SUM($I$2:$I$986) -> 12.31 | J1: =SUM($J$2:$J$986) -> 23.22 | K1: التاريخ
A2: 1 | B2: 50 | C2: بادى 23 | D2: الشيخ عمر | F2: 0 | G2: 2018-12-05 | H2: =B2/50 -> 1 | I2: =J2-H2 -> 2.22 | J2: 3.22 | K2: =IF($J2="","",IF(K2="",TODAY(),K2)) -> 2018-12-04
A3: 2 | B3: 1 | C3: بادى 23 | D3: زبون | F3: 0 | G3: 2018-12-05 | H3: 0.02 | I3: -0.02
A4: 3 | B4: 2 | C4: بادى 23 | D4: زبون | F4: 0 | G4: 2018-12-05 | H4: 0.04 | I4: -0.04
A5: 4 | B5: 8 | C5: بادى 23 | D5: زبون | F5: 0 | G5: 2018-12-05 | H5: 0.16 | I5: -0.16
A6: 2 | B6: 3 | C6: بادى 23 | D6: زبون | F6: 0 | G6: 2018-12-06 | H6: 0.06 | I6: -0.06
A7: 3 | B7: 2 | C7: بادى 23 | D7: الحاج محمد | F7: 0 | G7: 2018-12-06 | H7: 0.04 | I7: -0.04
A8: 1 | B8: 50 | C8: بادى 23 | D8: زبون | F8: 0 | G8: 2018-12-06 | H8: 1 | I8: -1
A9: 2 | B9: 3 | C9: بادى 23 | D9: زبون | F9: 0 | G9: 2018-12-08 | H9: 0.06 | I9: -0.06
A10: 3 | B10: 3 | C10: بادى 23 | D10: زبون | F10: 0 | G10: 2018-12-08 | H10: 0.06 | I10: -0.06
A11: 3 | B11: 2 | C11: بادى 23 | D11: زبون | F11: 0 | G11: 2018-12-09 | H11: 0.04 | I11: -0.04
A12: 3 | B12: 2 | C12: بادى 23 | D12: السيد ابو ندا | E12: اجل | G12: 2018-12-10 | H12: 0.04 | I12: -0.04
A13: 4 | B13: 5 | C13: بادى 23 | D13: الحاج عبده اليابانى | E13: اجل | G13: 2018-12-10 | H13: 0.1 | I13: -0.1
A14: 1 | B14: 1.5 | C14: بادى 23 | D14: زبونة | F14: 0 | G14: 2018-12-11 | H14: 0.03 | I14: 19.97 | J14: 20 | K14: 2018-12-11
A15: 2 | B15: 50 | C15: بادى 23 | D15: الشيخ عمر | E15: اجل | G15: 2018-12-12 | H15: 1 | I15: -1
A16: 4 | B16: 350 | C16: بادى 23 | D16: فكرى | E16: اجل | G16: 2018-12-12 | H16: 7 | I16: -7
A17: 1 | B17: 3 | C17: بادى 23 | D17: زبونة | F17: 0 | G17: 2018-12-12 | H17: 0.06 | I17: -0.06
A18: 2 | B18: 1 | C18: بادى 23 | D18: الحاج محمد | F18: 0 | G18: 2018-12-12 | H18: 0.02 | I18: -0.02
A19: 1 | B19: 1.5 | C19: بادى 23 | D19: فتحية | F19: 0 | G19: 2018-12-15 | H19: 0.03 | I19: -0.03
A20: 6 | B20: 3 | C20: بادى 23 | D20: الحاج محمد | F20: 0 | G20: 2018-12-15 | H20: 0.06 | I20: -0.06
A21: 8 | B21: 3 | C21: بادى 23 | D21: فتحية | F21: 0 | G21: 2018-12-15 | H21: 0.06 | I21: -0.06
A22: 1 | B22: 1.5 | C22: بادى 23 | D22: زبون | F22: 0 | G22: 2018-12-15 | H22: 0.03 | I22: -0.03
H23: 0 | I23: 0
H24: 0 | I24: 0
H25: 0 | I25: 0
H26: 0 | I26: 0
H27: 0 | I27: 0
H28: 0 | I28: 0
H29: 0 | I29: 0
H30: 0 | I30: 0
H31: 0 | I31: 0
H32: 0 | I32: 0
H33: 0 | I33: 0
H34: 0 | I34: 0 | K34: =IF($J34="","",IF(K34="",TODAY(),K34)) -> 
H35: 0 | I35: 0
H36: 0 | I36: 0
H37: 0 | I37: 0
H38: 0 | I38: 0
H39: 0 | I39: 0
H40: 0 | I40: 0
H41: 0 | I41: 0
H42: 0 | I42: 0
H43: 0 | I43: 0
H44: 0 | I44: 0
H45: 0 | I45: 0
H46: 0 | I46: 0
H47: 0 | I47: 0
H48: 0 | I48: 0
H49: 0 | I49: 0
H50: 0 | I50: 0
H51: 0 | I51: 0
H52: 0 | I52: 0
H53: 0 | I53: 0
H54: 0 | I54: 0
H55: 0 | I55: 0
H56: 0 | I56: 0
H57: 0 | I57: 0
H58: 0 | I58: 0
H59: 0 | I59: 0
H60: 0 | I60: 0
H61: 0 | I61: 0
H62: 0 | I62: 0
H63: 0 | I63: 0
H64: 0 | I64: 0
H65: 0 | I65: 0 | R65: =IF($Q65="","",IF(R65="",TODAY(),R65)) -> 
H66: =B66/50 -> 0 | I66: =J66-H66 -> 0
H67: 0 | I67: 0
H68: 0 | I68: 0
H69: 0 | I69: 0
H70: 0 | I70: 0
H71: 0 | I71: 0
H72: 0 | I72: 0
H73: 0 | I73: 0
H74: 0 | I74: 0
H75: 0 | I75: 0
H76: 0 | I76: 0
H77: 0 | I77: 0
H78: 0 | I78: 0
H79: 0 | I79: 0
H80: 0 | I80: 0
H81: 0 | I81: 0
H82: 0 | I82: 0
H83: 0 | I83: 0
H84: 0 | I84: 0
H85: 0 | I85: 0
H86: 0 | I86: 0
H87: 0 | I87: 0
H88: 0 | I88: 0
H89: 0 | I89: 0
H90: 0 | I90: 0
H91: 0 | I91: 0
H92: 0 | I92: 0
H93: 0 | I93: 0
H94: 0 | I94: 0
H95: 0 | I95: 0
H96: 0 | I96: 0
H97: 0 | I97: 0
H98: 0 | I98: 0 | K98: =IF($J98="","",IF(K98="",TODAY(),K98)) -> 
H99: 0 | I99: 0
H100: 0 | I100: 0
H101: 0 | I101: 0
H102: 0 | I102: 0
H103: 0 | I103: 0
H104: 0 | I104: 0
H105: 0 | I105: 0
H106: 0 | I106: 0
H107: 0 | I107: 0
H108: 0 | I108: 0
H109: 0 | I109: 0
H110: 0 | I110: 0
H111: 0 | I111: 0
H112: 0 | I112: 0
H113: 0 | I113: 0
H114: 0 | I114: 0
H115: 0 | I115: 0
H116: 0 | I116: 0
H117: 0 | I117: 0
H118: 0 | I118: 0
H119: 0 | I119: 0
H120: 0 | I120: 0
H121: 0 | I121: 0
H122: 0 | I122: 0
H123: 0 | I123: 0
H124: 0 | I124: 0
H125: 0 | I125: 0
H126: 0 | I126: 0
H127: 0 | I127: 0
H128: 0 | I128: 0
H129: 0 | I129: 0
H130: 0 | I130: 0
H131: =B131/50 -> 0 | I131: =J131-H131 -> 0

Sheet نامى 21 خشن
A1: مسلسل | B1: =SUM($B$2:$B$984) -> 1400 | C1: الصنف | D1: الاسم | E1: السعر | F1: =SUM($F$2:$F$984) -> 0 | G1: تاريخ البيع | H1: =SUM($H$2:$H$984) -> 28 | I1: =SUM($I$2:$I$984) -> 52 | J1: =SUM($J$2:$J$984) -> 80 | K1: التاريخ
A2: 2 | B2: 600 | C2: نامى 21 خشن | D2: شحتة | E2: اجل | G2: 2018-12-04 | H2: =B2/50 -> 12 | I2: =J2-H2 -> 8 | J2: 20 | K2: 2018-10-24
A3: 5 | B3: 50 | C3: نامى 21 خشن | D3: شحتة | F3: 0 | G3: 2018-12-05 | H3: 1 | I3: -1 | K3: =IF($J3="","",IF(K3="",TODAY(),K3)) -> 
A4: 6 | B4: 50 | C4: نامى 21 خشن | D4: الشيخ عمر | F4: 0 | G4: 2018-12-05 | H4: 1 | I4: -1
A5: 1 | B5: 100 | C5: نامى 21 خشن | D5: شحتة | E5: اجل | G5: 2018-12-05 | H5: 2 | I5: -2
A6: 4 | B6: 50 | C6: نامى 21 خشن | D6: حسين حمادة | F6: 0 | G6: 2018-12-06 | H6: 1 | I6: 59 | J6: 60 | K6: 2018-12-08
A7: 1 | B7: 50 | C7: نامى 21 خشن | D7: السيد كراسيع | E7: اجل | G7: 2018-12-11 | H7: 1 | I7: -1
A8: 1 | B8: 50 | C8: نامى 21 خشن | D8: حسين حمادة | F8: 0 | G8: 2018-12-12 | H8: 1 | I8: -1
A9: 1 | B9: 150 | C9: نامى 21 خشن | D9: الشيخ عمر | F9: 0 | G9: 2018-12-12 | H9: 3 | I9: -3
A10: 3 | B10: 150 | C10: نامى 21 خشن | D10: فكرى | E10: اجل | G10: 2018-12-12 | H10: 3 | I10: -3
A11: 1 | B11: 50 | C11: نامى 21 خشن | D11: حسن السواق | F11: 0 | G11: 2018-12-12 | H11: 1 | I11: -1
A12: 2 | B12: 25 | C12: نامى 21 خشن | D12: الشيخ عمر | E12: اجل | G12: 2018-12-15 | H12: 0.5 | I12: -0.5
A13: 3 | B13: 50 | C13: نامى 21 خشن | D13: احمد سرحان | E13: اجل | G13: 2018-12-15 | H13: 1 | I13: -1
A14: 1 | B14: 25 | C14: نامى 21 خشن | D14: ابو زينة | F14: 0 | G14: 2018-12-15 | H14: 0.5 | I14: -0.5
H15: 0 | I15: 0
H16: 0 | I16: 0
H17: 0 | I17: 0
H18: 0 | I18: 0
H19: 0 | I19: 0
H20: 0 | I20: 0
H21: 0 | I21: 0
H22: 0 | I22: 0
H23: 0 | I23: 0
H24: 0 | I24: 0
H25: 0 | I25: 0
H26: 0 | I26: 0
H27: 0 | I27: 0
H28: 0 | I28: 0
H29: 0 | I29: 0
H30: 0 | I30: 0
H31: 0 | I31: 0
H32: 0 | I32: 0
H33: =B33/50 -> 0 | I33: =J33-H33 -> 0 | K33: =IF($J33="","",IF(K33="",TODAY(),K33)) -> 
H34: 0 | I34: 0
H35: 0 | I35: 0
H36: 0 | I36: 0
H37: =B37/50 -> 0 | I37: =J37-H37 -> 0
H38: 0 | I38: 0
H39: 0 | I39: 0
H40: 0 | I40: 0
H41: 0 | I41: 0
H42: 0 | I42: 0
H43: =B43/50 -> 0 | I43: =J43-H43 -> 0
H44: 0 | I44: 0
H45: 0 | I45: 0
H46: 0 | I46: 0
H47: 0 | I47: 0
H48: 0 | I48: 0
H49: 0 | I49: 0
H50: 0 | I50: 0
H51: 0 | I51: 0
H52: 0 | I52: 0
H53: 0 | I53: 0
H54: 0 | I54: 0
H55: 0 | I55: 0
H56: 0 | I56: 0
H57: 0 | I57: 0
H58: 0 | I58: 0
H59: 0 | I59: 0
H60: 0 | I60: 0
H61: 0 | I61: 0
H62: 0 | I62: 0
H63: 0 | I63: 0
H64: 0 | I64: 0
H65: 0 | I65: 0
H66: 0 | I66: 0
H67: 0 | I67: 0
H68: 0 | I68: 0
H69: 0 | I69: 0
H70: 0 | I70: 0
H71: 0 | I71: 0
H72: 0 | I72: 0
H73: 0 | I73: 0
H74: 0 | I74: 0
H75: 0 | I75: 0
H76: 0 | I76: 0
H77: 0 | I77: 0
H78: 0 | I78: 0
H79: 0 | I79: 0
H80: 0 | I80: 0
H81: 0 | I81: 0
H82: 0 | I82: 0
H83: 0 | I83: 0
H84: 0 | I84: 0
H85: 0 | I85: 0
H86: 0 | I86: 0
H87: 0 | I87: 0
H88: 0 | I88: 0
H89: 0 | I89: 0
K97: =IF($J97="","",IF(K97="",TODAY(),K97)) -> 

Sheet بادى نامى ناعم
A1: مسلسل | B1: =SUM($B$2:$B$986) -> 0 | C1: الصنف | D1: الاسم | E1: السعر | F1: =SUM($F$2:$F$986) -> 0 | G1: تاريخ البيع | H1: =SUM($H$2:$H$986) -> 0 | I1: =SUM($I$2:$I$986) -> 0 | J1: =SUM($J$2:$J$986) -> 0 | K1: التاريخ
H2: =B2/50 -> 0 | I2: =J2-H2 -> 0 | K2: =IF($J2="","",IF(K2="",TODAY(),K2)) -> 
H3: 0 | I3: 0
H4: 0 | I4: 0
H5: 0 | I5: 0
H6: 0 | I6: 0
H7: 0 | I7: 0
H8: 0 | I8: 0
H9: 0 | I9: 0
H10: 0 | I10: 0
H11: 0 | I11: 0
H12: 0 | I12: 0
H13: 0 | I13: 0
H14: 0 | I14: 0
H15: 0
H16: 0
H17: 0
H18: 0
H19: 0
H20: 0
H21: 0
H22: 0
H23: 0
H24: 0
H25: 0
H26: 0
H27: 0
H28: 0
H29: 0
H30: 0
H31: 0
H32: 0
H33: 0
K34: =IF($J34="","",IF(K34="",TODAY(),K34)) -> 

Sheet بادى نامى خشن
A1: مسلسل | B1: =SUM($B$2:$B$984) -> 1106.5 | C1: الصنف | D1: الاسم | E1: السعر | F1: =SUM($F$2:$F$984) -> 0 | G1: تاريخ البيع | H1: =SUM($H$2:$H$984) -> 22.13 | I1: =SUM($I$2:$I$984) -> 18.71 | J1: =SUM($J$2:$J$984) -> 40.84 | K1: التاريخ
A2: 1 | B2: 900 | C2: بادى نامى خشن | D2: عبد المنعم الحوت | E2: اجل | G2: 2018-12-04 | H2: =B2/50 -> 18 | I2: =J2-H2 -> 2 | J2: 20 | K2: =IF($J2="","",IF(K2="",TODAY(),K2)) -> 2018-12-04
A3: 1 | B3: 3 | C3: بادى نامى خشن | D3: زبون | F3: 0 | G3: 2018-12-06 | H3: 0.06 | I3: -0.06
A4: 5 | B4: 1.5 | C4: بادى نامى خشن | D4: زبون | F4: 0 | G4: 2018-12-06 | H4: 0.03 | I4: -0.03
A5: 1 | B5: 5 | C5: بادى نامى خشن | D5: الحاج عبده اليابانى | F5: 0 | G5: 2018-12-06 | H5: 0.1 | I5: -0.1
A6: 1 | B6: 6 | C6: بادى نامى خشن | D6: زبون | F6: 0 | G6: 2018-12-08 | H6: 0.12 | I6: -0.12
A7: 4 | B7: 1.5 | C7: بادى نامى خشن | D7: زبون | F7: 0 | G7: 2018-12-08 | H7: 0.03 | I7: 19.97 | J7: 20 | K7: 2018-12-08
A8: 1 | B8: 3 | C8: بادى نامى خشن | D8: ام محمد سبايت | F8: 0 | G8: 2018-12-09 | H8: 0.06 | I8: -0.06
A9: 2 | B9: 50 | C9: بادى نامى خشن | D9: الشيخ عمر | F9: 0 | G9: 2018-12-09 | H9: 1 | I9: -1
A10: 1 | B10: 1.5 | C10: بادى نامى خشن | D10: زبون | F10: 0 | G10: 2018-12-09 | H10: 0.03 | I10: -0.03
A11: 1 | B11: 50 | C11: بادى نامى خشن | D11: حسن السواق | F11: 0 | G11: 2018-12-09 | H11: 1 | I11: -1
A12: 1 | B12: 50 | C12: بادى نامى خشن | D12: الشيخ عمر | E12: اجل | G12: 2018-12-10 | H12: 1 | I12: -1
A13: 2 | B13: 1.5 | C13: بادى نامى خشن | D13: زبون | F13: 0 | G13: 2018-12-10 | H13: 0.03 | I13: -0.03
A14: 1 | B14: 3 | C14: بادى نامى خشن | D14: زبونة | F14: 0 | G14: 2018-12-11 | H14: 0.06 | I14: -0.06
A15: 1 | B15: 1.5 | C15: بادى نامى خشن | D15: زبونة | F15: 0 | G15: 2018-12-11 | H15: 0.03 | I15: -0.03
A16: 2 | B16: 3 | C16: بادى نامى خشن | D16: زبونة | F16: 0 | G16: 2018-12-11 | H16: 0.06 | I16: -0.06
A17: 2 | B17: 3 | C17: بادى نامى خشن | D17: فتحية | F17: 0 | G17: 2018-12-12 | H17: 0.06 | I17: -0.06
A18: 3 | B18: 1.5 | C18: بادى نامى خشن | D18: زبونة | F18: 0 | G18: 2018-12-12 | H18: 0.03 | I18: 0.81 | J18: 0.84 | K18: 2018-12-12 | L18: مرتجع حسن السواق
A19: 5 | B19: 3 | C19: بادى نامى خشن | D19: زبون | F19: 0 | G19: 2018-12-15 | H19: 0.06 | I19: -0.06
A20: 7 | B20: 9.5 | C20: بادى نامى خشن | D20: فتحية | F20: 0 | G20: 2018-12-15 | H20: 0.19 | I20: -0.19
A21: 9 | B21: 1 | C21: بادى نامى خشن | D21: زبون | F21: 0 | G21: 2018-12-15 | H21: 0.02 | I21: -0.02
A22: 10 | B22: 4 | C22: بادى نامى خشن | D22: زبون | F22: 0 | G22: 2018-12-15 | H22: 0.08 | I22: -0.08
A23: 1 | B23: 4 | C23: بادى نامى خشن | D23: زبون | F23: 0 | G23: 2018-12-15 | H23: 0.08 | I23: -0.08
H24: 0 | I24: 0
H25: 0 | I25: 0
H26: 0 | I26: 0
H27: 0 | I27: 0
H28: 0 | I28: 0
H29: 0 | I29: 0
H30: 0 | I30: 0
H31: 0 | I31: 0
H32: =B32/50 -> 0 | I32: =J32-H32 -> 0 | K32: =IF($J32="","",IF(K32="",TODAY(),K32)) -> 
H33: 0 | I33: 0
H34: 0 | I34: 0
H35: 0 | I35: 0
H36: 0 | I36: 0
H37: 0 | I37: 0
H38: =B38/50 -> 0 | I38: =J38-H38 -> 0
H39: 0 | I39: 0
H40: 0 | I40: 0
H41: 0 | I41: 0
H42: 0 | I42: 0
H43: 0 | I43: 0
H44: 0 | I44: 0
H45: 0 | I45: 0
H46: 0 | I46: 0
H47: 0 | I47: 0
H48: 0 | I48: 0
H49: 0 | I49: 0
H50: 0 | I50: 0
H51: 0 | I51: 0
H52: 0 | I52: 0
H53: 0 | I53: 0
H54: 0 | I54: 0
H55: 0 | I55: 0
H56: 0 | I56: 0
H57: 0 | I57: 0
H58: 0 | I58: 0
H59: 0 | I59: 0
H60: 0 | I60: 0
H61: 0 | I61: 0
H62: 0 | I62: 0
H63: 0 | I63: 0
H64: 0 | I64: 0
H65: 0 | I65: 0
H66: 0 | I66: 0
H67: 0 | I67: 0
H68: 0 | I68: 0
H69: 0 | I69: 0
H70: 0 | I70: 0
H71: 0 | I71: 0
H72: 0 | I72: 0
H73: 0 | I73: 0
H74: 0 | I74: 0
H75: 0 | I75: 0
H76: 0 | I76: 0
H77: 0 | I77: 0
H78: 0 | I78: 0
H79: 0 | I79: 0
H80: 0 | I80: 0
H81: 0 | I81: 0
H82: 0 | I82: 0
H83: 0 | I83: 0
H84: 0 | I84: 0
H85: 0 | I85: 0
H86: 0 | I86: 0
H87: 0 | I87: 0
H88: 0 | I88: 0
H89: 0 | I89: 0
H90: 0 | I90: 0
H91: 0 | I91: 0
H92: 0 | I92: 0
H93: 0 | I93: 0
H94: 0 | I94: 0
H95: 0 | I95: 0
H96: 0 | I96: 0
H97: 0 | I97: 0 | K97: =IF($J97="","",IF(K97="",TODAY(),K97)) -> 
H98: 0 | I98: 0
H99: 0 | I99: 0
H100: 0 | I100: 0
H101: 0 | I101: 0
H102: 0 | I102: 0
H103: =B103/50 -> 0 | I103: =J103-H103 -> 0
H104: 0 | I104: 0
H105: 0 | I105: 0
H106: 0 | I106: 0
H107: 0 | I107: 0
H108: 0 | I108: 0
H109: 0 | I109: 0
H110: 0 | I110: 0
H111: 0 | I111: 0
H112: 0 | I112: 0
H113: 0 | I113: 0
H114: 0 | I114: 0
H115: 0 | I115: 0
H116: 0 | I116: 0
H117: 0 | I117: 0
H118: 0 | I118: 0
H119: 0 | I119: 0
H120: 0 | I120: 0
H121: =B121/50 -> 0 | I121: =J121-H121 -> 0
H122: 0 | I122: 0
H123: 0 | I123: 0
H124: 0 | I124: 0
H125: 0 | I125: 0
H126: 0 | I126: 0
H127: 0 | I127: 0
H128: 0 | I128: 0
H129: 0 | I129: 0
H130: 0 | I130: 0
H131: 0 | I131: 0
H132: 0 | I132: 0
H133: 0 | I133: 0
H134: 0 | I134: 0
H135: 0 | I135: 0
H136: 0 | I136: 0
H137: 0 | I137: 0
H138: 0 | I138: 0
H139: 0 | I139: 0
H140: 0 | I140: 0
H141: 0 | I141: 0
H142: 0 | I142: 0
H143: 0 | I143: 0
H144: 0 | I144: 0
H145: 0 | I145: 0
H146: 0 | I146: 0
H147: 0 | I147: 0
H148: 0 | I148: 0
H149: 0 | I149: 0
H150: 0 | I150: 0
H151: 0 | I151: 0
H152: 0 | I152: 0
H153: 0 | I153: 0
H154: 0 | I154: 0
H155: 0 | I155: 0
H156: 0 | I156: 0
H157: 0 | I157: 0
H158: 0 | I158: 0
H159: 0 | I159: 0
H160: 0 | I160: 0 | K160: =IF($J160="","",IF(K160="",TODAY(),K160)) -> 
H161: 0 | I161: 0
H162: 0 | I162: 0
H163: 0 | I163: 0
H164: 0 | I164: 0
H165: 0 | I165: 0
H166: 0 | I166: 0
H167: 0 | I167: 0
H168: 0 | I168: 0
H169: 0 | I169: 0
H170: 0 | I170: 0
H171: 0 | I171: 0
H172: 0 | I172: 0
H173: 0 | I173: 0
H174: 0 | I174: 0
H175: 0 | I175: 0
H176: 0 | I176: 0
H177: 0 | I177: 0
H178: 0 | I178: 0
H179: 0 | I179: 0
H180: 0 | I180: 0
H181: 0 | I181: 0
H182: 0 | I182: 0
H183: 0 | I183: 0
H184: 0 | I184: 0
H185: =B185/50 -> 0 | I185: =J185-H185 -> 0
H186: 0 | I186: 0
H187: 0 | I187: 0
H188: 0 | I188: 0
H189: 0 | I189: 0
H190: 0 | I190: 0
H191: 0 | I191: 0
H192: 0 | I192: 0
H193: 0 | I193: 0
H194: 0 | I194: 0
H195: 0 | I195: 0
H196: 0 | I196: 0
H197: 0 | I197: 0
H198: 0 | I198: 0
H199: 0 | I199: 0
H200: 0 | I200: 0
... 153 more rows

Sheet بياض
A1: مسلسل | B1: =SUM($B$2:$B$986) -> 150 | C1: الصنف | D1: الاسم | E1: السعر | F1: =SUM($F$2:$F$986) -> 0 | G1: تاريخ البيع | H1: =SUM($H$2:$H$986) -> 3 | I1: =SUM($I$2:$I$986) -> 5 | J1: =SUM($J$2:$J$986) -> 8 | K1: التاريخ
A2: 1 | B2: 100 | C2: بياض | D2: وليد فوزى | E2: اجل | G2: 2018-12-05 | H2: =B2/50 -> 2 | I2: =J2-H2 -> 1 | J2: 3 | K2: =IF($J2="","",IF(K2="",TODAY(),K2)) -> 2018-12-04
A3: 1 | B3: 50 | C3: بياض | D3: المزرعة | F3: 0 | G3: 2018-12-06 | H3: 1 | I3: 4 | J3: 5 | K3: 2018-12-09
H4: 0 | I4: 0
H5: 0 | I5: 0
H6: 0 | I6: 0
H7: 0 | I7: 0
H8: 0 | I8: 0
H9: 0 | I9: 0
H10: 0 | I10: 0
H11: 0 | I11: 0
H12: 0 | I12: 0
H13: 0 | I13: 0
H14: 0 | I14: 0
H15: 0 | I15: 0
H16: 0 | I16: 0
H17: 0 | I17: 0
H18: 0 | I18: 0
H19: 0 | I19: 0
H20: 0 | I20: 0
H21: 0 | I21: 0
H22: =B22/50 -> 0 | I22: =J22-H22 -> 0
H23: 0 | I23: 0
H24: 0 | I24: 0
H25: 0 | I25: 0
H26: =B26/50 -> 0 | I26: =J26-H26 -> 0
H27: 0 | I27: 0
H28: 0 | I28: 0
H29: 0 | I29: 0
H30: 0 | I30: 0
H31: 0 | I31: 0
H32: 0 | I32: 0
H33: 0 | I33: 0
K34: =IF($J34="","",IF(K34="",TODAY(),K34)) -> 

Sheet ردة
A1: مسلسل | B1: =SUM($B$2:$B$986) -> 0 | C1: الصنف | D1: الاسم | E1: السعر | F1: =SUM($F$2:$F$986) -> 0 | G1: تاريخ البيع | H1: =SUM($H$2:$H$986) -> 0 | I1: =SUM($I$2:$I$986) -> 0 | J1: =SUM($J$2:$J$986) -> 0 | K1: التاريخ
H2: =B2/40 -> 0 | I2: =J2-H2 -> 0 | K2: =IF($J2="","",IF(K2="",TODAY(),K2)) -> 
H3: =B3/40 -> 0 | I3: 0
H4: 0 | I4: 0
H5: 0 | I5: 0
H6: 0 | I6: 0
H7: 0 | I7: 0
H8: 0 | I8: 0
H9: 0 | I9: 0
H10: 0 | I10: 0
H11: 0 | I11: 0
H12: 0 | I12: 0
H13: 0 | I13: 0
H14: 0 | I14: 0
H15: 0 | I15: 0
H16: 0 | I16: 0
H17: 0 | I17: 0
H18: 0 | I18: 0
H19: 0 | I19: 0
H20: 0 | I20: 0
H21: 0 | I21: 0
H22: 0 | I22: 0
H23: 0 | I23: 0
H24: 0 | I24: 0
H25: 0 | I25: 0
H26: 0 | I26: 0
H27: 0 | I27: 0
H28: 0 | I28: 0
H29: 0 | I29: 0
H30: 0 | I30: 0
H31: 0 | I31: 0
H32: 0 | I32: 0
H33: 0 | I33: 0
K34: =IF($J34="","",IF(K34="",TODAY(),K34)) -> 

Sheet دشيشة
A1: مسلسل | B1: =SUM($B$2:$B$986) -> 0 | C1: الصنف | D1: الاسم | E1: السعر | F1: =SUM($F$2:$F$986) -> 0 | G1: تاريخ البيع | H1: =SUM($H$2:$H$986) -> 0 | I1: =SUM($I$2:$I$986) -> 0 | J1: =SUM($J$2:$J$986) -> 0 | K1: التاريخ
H2: =B2/50 -> 0 | I2: =J2-H2 -> 0 | K2: =IF($J2="","",IF(K2="",TODAY(),K2)) -> 
H3: 0 | I3: 0
H4: 0 | I4: 0
H5: 0 | I5: 0
H6: 0 | I6: 0
H7: 0 | I7: 0
H8: =B8/50 -> 0 | I8: 0
H9: 0 | I9: 0
H10: 0 | I10: 0
H11: 0 | I11: 0
H12: 0 | I12: 0
H13: 0 | I13: 0
H14: 0 | I14: 0
H15: 0 | I15: 0
H16: 0 | I16: 0
H17: 0 | I17: 0
H18: 0 | I18: 0
H19: 0 | I19: 0
H20: 0 | I20: 0
H21: 0 | I21: 0
H22: 0 | I22: 0
H23: 0 | I23: 0
H24: 0 | I24: 0
H25: 0 | I25: 0
H26: 0 | I26: 0
H27: 0 | I27: 0
H28: 0 | I28: 0
H29: 0 | I29: 0
H30: 0 | I30: 0
H31: 0 | I31: 0
H32: 0 | I32: 0
H33: 0 | I33: 0
K34: =IF($J34="","",IF(K34="",TODAY(),K34)) -> 

Sheet Setting (hidden)
A1: اسماء الأصناف | B1: سعر الكيلو | E1: أسماء العملاء
A2: بلدى | B2: 2.5 | E2: عميل رقم 1
A3: ساسو | B3: 3 | E3: عميل رقم 2
A4: دقى | B4: 3.5 | E4: عميل رقم 3
A5: فيومى | B5: 4 | E5: عميل رقم 4
A6: دشيشة | B6: 4.5 | E6: عميل رقم 5
A7: ردة | B7: 4.5 | E7: عميل رقم 6
A8: علف بط | B8: 5 | E8: عميل رقم 7
A9: بياض | B9: 5 | E9: عميل رقم 8
A10: تسمين | B10: 6.5 | E10: عميل رقم 9
A11: بادى نامى خشن | B11: 7 | E11: عميل رقم 10
A12: بادى نامى ناعم | B12: 7 | E12: عميل رقم 11
A13: نامى خشن | B13: 7 | E13: عميل رقم 12
A14: بادى ناعم | B14: 7.5 | E14: عميل رقم 13
A15: مولر | B15: 15 | E15: عميل رقم 14
A16: موسكوفى | B16: 18 | E16: عميل رقم 15
A17: رومى | B17: 30 | E17: عميل رقم 16
E18: عميل رقم 17
E19: عميل رقم 18
E20: عميل رقم 19
E21: عميل رقم 20

Sheet ورقة1
A1: اليوم | B1: عدد البيض | D1: عدد الكراتين
B2: احمر | C2: ابيض | D2: =SUM($D$3:$D$1000) -> 23 | E2: =SUM($E$3:$E$1000) -> 15
A3: 2018-12-11 | D3: =B3/30 -> 0 | E3: =C3/30 -> 0
A4: 2018-12-12 | D4: =B4/30 -> 0 | E4: =C4/30 -> 0
A5: 2018-12-13 | D5: 0 | E5: 0
A6: 2018-12-14 | B6: 690 | C6: 450 | D6: 23 | E6: 15
A7: 2018-12-15 | D7: 0 | E7: 0
A8: 2018-12-16 | D8: 0 | E8: 0
A9: 2018-12-17 | D9: 0 | E9: 0
A10: 2018-12-18 | D10: 0 | E10: 0
A11: 2018-12-19 | D11: 0 | E11: 0
A12: 2018-12-20 | D12: 0 | E12: 0
A13: 2018-12-21 | D13: 0 | E13: 0
A14: 2018-12-22 | D14: 0 | E14: 0
A15: 2018-12-23 | D15: 0 | E15: 0
A16: 2018-12-24 | D16: 0 | E16: 0
A17: 2018-12-25 | D17: 0 | E17: 0
A18: 2018-12-26 | D18: 0 | E18: 0
A19: 2018-12-27 | D19: 0 | E19: 0
A20: 2018-12-28 | D20: 0 | E20: 0
A21: 2018-12-29 | D21: 0 | E21: 0
A22: 2018-12-30 | D22: 0 | E22: 0
A23: 2018-12-31 | D23: 0 | E23: 0
A24: 2019-01-01 | D24: 0 | E24: 0
A25: 2019-01-02 | D25: 0 | E25: 0
A26: 2019-01-03 | D26: 0 | E26: 0
A27: 2019-01-04 | D27: 0 | E27: 0
A28: 2019-01-05 | D28: 0 | E28: 0
A29: 2019-01-06 | D29: 0 | E29: 0
A30: 2019-01-07 | D30: 0 | E30: 0
A31: 2019-01-08 | D31: 0 | E31: 0
A32: 2019-01-09 | D32: 0 | E32: 0
A33: 2019-01-10 | D33: 0 | E33: 0
A34: 2019-01-11 | D34: 0 | E34: 0
A35: 2019-01-12 | D35: 0 | E35: 0
A36: 2019-01-13 | D36: 0 | E36: 0
A37: 2019-01-14 | D37: 0 | E37: 0
A38: 2019-01-15 | D38: 0 | E38: 0
A39: 2019-01-16 | D39: 0 | E39: 0
A40: 2019-01-17 | D40: 0 | E40: 0
A41: 2019-01-18 | D41: 0 | E41: 0
A42: 2019-01-19 | D42: 0 | E42: 0
A43: 2019-01-20 | D43: 0 | E43: 0
A44: 2019-01-21 | D44: 0 | E44: 0
A45: 2019-01-22 | D45: 0 | E45: 0
A46: 2019-01-23 | D46: =B46/30 -> 0 | E46: =C46/30 -> 0
A47: 2019-01-24 | D47: 0 | E47: 0
A48: 2019-01-25 | D48: 0 | E48: 0
A49: 2019-01-26 | D49: 0 | E49: 0
A50: 2019-01-27 | D50: 0 | E50: 0
A51: 2019-01-28 | D51: 0 | E51: 0
A52: 2019-01-29 | D52: 0 | E52: 0
A53: 2019-01-30 | D53: 0 | E53: 0
A54: 2019-01-31 | D54: =B54/30 -> 0 | E54: =C54/30 -> 0
